bitfinex/quotes_SOLUSD_20250616
["timestamp","ask_amount","ask_price","bid_price","bid_amount"]
[1750059065211,4.66093765,157.74,157.71,22.19263204]
[1750059065406,1.5699,157.78,157.71,26.85356969]
[1750059065610,1.5699,157.78,157.72,0.28432314]
[1750059065908,4.66093765,157.76,157.72,0.28432314]
[1750059066092,4.66093765,157.75,157.71,22.19263204]
[1750059066282,4.66093765,157.77,157.73,22.18981804]
[1750059066486,4.66093765,157.76,157.73,22.18981804]
[1750059066998,18.64964886,157.77,157.73,22.18981804]
[1750059067205,4.66093765,157.75,157.73,22.18981804]
[1750059067406,18.64964886,157.77,157.67,6.34236062]
[1750059067407,18.64964886,157.73,157.67,6.34236062]
[1750059067606,4.66093765,157.7,157.67,6.34236062]
[1750059067808,4.66093765,157.69,157.67,22.19774898]
[1750059068106,4.66093765,157.7,157.67,22.19774898]
[1750059068312,4.66093765,157.7,157.67,15.85538836]
[1750059068492,18.64964886,157.74,157.67,15.85538836]
[1750059068693,4.66093765,157.7,157.67,15.85538836]
[1750059069294,18.64964886,157.74,157.67,15.85538836]
[1750059069613,4.66093765,157.7,157.67,15.85538836]
[1750059069796,4.66093765,157.68,157.65,6.34316523]
[1750059069999,4.66093765,157.67,157.65,6.34316523]
[1750059070204,4.66093765,157.66,157.65,6.34316523]
[1750059070813,20.28904886,157.71,157.65,6.34316523]
[1750059071119,4.66093765,157.66,157.65,6.34316523]
[1750059071300,20.28904886,157.71,157.65,6.34316523]
[1750059071502,4.66093765,157.66,157.62,6.34437254]
[1750059072014,4.66093765,157.66,157.62,22.20530389]
[1750059072196,20.28904886,157.71,157.62,22.20530389]
[1750059072903,20.28904886,157.71,157.63,0.28432314]
[1750059073100,4.66093765,157.66,157.62,22.20530389]
[1750059073297,4.66093765,157.65,157.62,22.20530389]
[1750059073500,20.28904886,157.71,157.62,15.86093135]
[1750059073909,4.66093765,157.65,157.62,15.86093135]
[1750059074213,4.66093765,157.63,157.61,6.34477507]
[1750059074398,4.66093765,157.62,157.56,6.34678852]
[1750059074599,4.66093765,157.57,157.56,6.34678852]
[1750059074914,4.66093765,157.58,157.56,6.34678852]
[1750059075117,4.66093765,157.57,157.56,6.34678852]
[1750059075412,4.66093765,157.57,157.55,15.86763718]
[1750059075793,44.64964886,157.58,157.53,6.3479972]
[1750059075999,4.66093765,157.54,157.53,6.3479972]
[1750059076305,44.64964886,157.58,157.53,6.3479972]
[1750059076513,4.66093765,157.54,157.53,6.3479972]
[1750059076920,44.64964886,157.58,157.53,6.3479972]
[1750059077093,44.64964886,157.58,157.53,22.21799021]
[1750059077412,7.59423883,157.55,157.53,22.21799021]
[1750059077618,44.64964886,157.58,157.51,6.34880325]
[1750059078001,7.59423883,157.54,157.51,6.34880325]
[1750059078615,7.59423883,157.55,157.51,22.22081137]
[1750059079198,44.64964886,157.58,157.52,7.87856197]
[1750059079406,7.59423883,157.57,157.52,7.87856197]
[1750059079694,7.59423883,157.56,157.53,6.3479972]
[1750059081503,7.59423883,157.57,157.53,22.21799021]
[1750059081708,7.59423883,157.56,157.53,22.21799021]
[1750059082701,7.59423883,157.58,157.53,29.81222904]
[1750059082902,26.0,157.6,157.54,7.59423883]
[1750059083104,26.0,157.6,157.55,0.28432314]
[1750059083310,26.0,157.6,157.55,7.87856197]
[1750059083607,7.59423883,157.59,157.56,6.34678852]
[1750059083801,26.0,157.6,157.56,6.34678852]
[1750059084004,33.59423883,157.6,157.56,6.34678852]
[1750059084415,7.59423883,157.61,157.56,29.80799866]
[1750059084726,44.64964886,157.62,157.56,29.80799866]
[1750059084914,1.6052,157.64,157.58,7.59423883]
[1750059084915,7.59423883,157.63,157.58,7.59423883]
[1750059085107,7.59423883,157.62,157.57,0.28432314]
[1750059085503,7.59423883,157.62,157.58,22.21094047]
[1750059085922,7.59423883,157.61,157.58,22.21094047]
[1750059086311,27.6052,157.64,157.58,22.21094047]
[1750059086508,7.59423883,157.63,157.58,29.8051793]
[1750059087004,27.6052,157.64,157.58,22.21094047]
[1750059087207,7.59423883,157.62,157.58,22.21094047]
[1750059087720,27.6052,157.64,157.58,22.21094047]
[1750059088031,7.59423883,157.62,157.58,22.21094047]
[1750059088819,7.59423883,157.6,157.58,22.21094047]
[1750059089019,7.59423883,157.59,157.58,6.34598299]
[1750059089517,7.59423883,157.59,157.51,31.74286812]
[1750059089518,18.64964886,157.59,157.51,31.74286812]
[1750059089713,18.64964886,157.59,157.52,0.28432314]
[1750059089913,18.64964886,157.59,157.51,39.33710695]
[1750059090102,7.59423883,157.56,157.51,39.33710695]
[1750059090525,7.59423883,157.56,157.51,31.74286812]
[1750059090924,7.59423883,157.56,157.52,0.14216157]
[1750059091114,18.64964886,157.59,157.53,7.59423883]
[1750059091318,18.64964886,157.59,157.52,7.87856197]
[1750059091517,18.64964886,157.59,157.53,22.21799021]
[1750059092021,7.59423883,157.57,157.53,22.21799021]
[1750059092741,7.59423883,157.56,157.53,22.21799021]
[1750059092943,7.59423883,157.55,157.53,22.21799021]
[1750059093411,18.64964886,157.59,157.53,22.21799021]
[1750059093613,7.59423883,157.56,157.53,15.86999301]
[1750059093813,7.59423883,157.55,157.53,15.86999301]
[1750059094010,18.64964886,157.59,157.53,15.86999301]
[1750059094223,7.59423883,157.55,157.53,15.86999301]
[1750059095041,7.59423883,157.56,157.53,15.86999301]
[1750059095950,18.64964886,157.59,157.53,15.86999301]
[1750059095951,7.59423883,157.55,157.53,15.86999301]
[1750059096630,7.59423883,157.56,157.53,15.86999301]
[1750059096828,4.65933846,157.56,157.53,15.86999301]
[1750059099551,18.64964886,157.59,157.53,15.86999301]
[1750059100066,18.64964886,157.59,157.53,26.87732867]
[1750059100927,18.64964886,157.59,157.53,22.21799021]
[1750059101263,4.65933846,157.55,157.53,22.21799021]
[1750059101430,4.65933846,157.55,157.53,6.3479972]
[1750059102247,4.65933846,157.55,157.51,53.96367949]
[1750059102447,23.30898732,157.59,157.51,53.96367949]
[1750059102751,4.65933846,157.54,157.51,53.96367949]
[1750059103748,23.30898732,157.59,157.51,53.96367949]
[1750059103941,4.65933846,157.55,157.51,53.96367949]
[1750059104856,4.65933846,157.56,157.51,58.62301795]
[1750059105762,18.64964886,157.59,157.51,58.62301795]
[1750059105937,4.65933846,157.56,157.51,58.62301795]
[1750059106331,18.64964886,157.59,157.51,58.62301795]
[1750059106532,4.65933846,157.55,157.51,53.96367949]
[1750059107856,4.65933846,157.58,157.53,4.65933846]
[1750059109254,4.65933846,157.6,157.55,4.65933846]
[1750059109858,4.65933846,157.6,157.56,22.21375983]
[1750059110438,18.64964886,157.61,157.56,22.21375983]
[1750059110859,4.65933846,157.6,157.56,22.21375983]
[1750059111556,18.64964886,157.61,157.56,22.21375983]
[1750059111735,18.64964886,157.61,157.55,4.65933846]
[1750059111736,4.65933846,157.6,157.53,54.24229938]
[1750059112063,4.65933846,157.6,157.55,4.65933846]
[1750059112360,4.65933846,157.59,157.53,54.24229938]
[1750059112559,18.64964886,157.61,157.54,4.65933846]
[1750059112857,4.65933846,157.6,157.53,54.24229938]
[1750059113163,4.65933846,157.59,157.54,4.65933846]
[1750059113859,4.65933846,157.59,157.55,22.21516977]
[1750059114761,4.65933846,157.6,157.55,26.87450823]
[1750059114935,4.65933846,157.6,157.55,15.86797841]
[1750059115235,4.65933846,157.59,157.55,15.86797841]
[1750059115646,4.65933846,157.57,157.55,15.86797841]
[1750059116235,18.64964886,157.61,157.55,15.86797841]
[1750059116542,4.65933846,157.57,157.55,15.86797841]
[1750059117068,4.65933846,157.56,157.53,6.3479972]
[1750059117537,147.0,157.63,157.55,4.65933846]
[1750059117855,30.65933846,157.6,157.54,0.28432314]
[1750059118159,18.64964886,157.59,157.53,58.6173147]
[1750059118354,4.65933846,157.58,157.53,58.6173147]
[1750059118745,4.65933846,157.58,157.53,26.87732867]
[1750059119060,4.65933846,157.57,157.53,22.21799021]
[1750059120036,4.65933846,157.56,157.53,22.21799021]
[1750059120455,4.65933846,157.57,157.53,22.21799021]
[1750059121066,4.65933846,157.57,157.53,15.86999301]
[1750059121742,23.30898732,157.59,157.54,4.65933846]
[1750059122737,23.30898732,157.59,157.55,22.21516977]
[1750059123552,26.0,157.6,157.55,26.87450823]
[1750059123949,30.65933846,157.6,157.55,22.21516977]
[1750059124156,30.65933846,157.6,157.55,26.87450823]
[1750059124468,26.0,157.6,157.55,26.87450823]
[1750059124673,26.0,157.6,157.56,4.65933846]
[1750059124852,26.0,157.6,157.57,6.34638573]
[1750059125063,30.65933846,157.6,157.57,6.34638573]
[1750059125445,4.65933846,157.59,157.57,6.34638573]
[1750059127070,4.65933846,157.59,157.55,22.21516977]
[1750059128151,4.65933846,157.58,157.55,22.21516977]
[1750059128844,18.64964886,157.59,157.55,6.34719136]
[1750059128845,4.65933846,157.56,157.55,6.34719136]
[1750059129052,18.64964886,157.56,157.52,15.87032331]
[1750059129374,23.30898732,157.56,157.52,15.87032331]
[1750059131254,4.65933846,157.55,157.52,15.87032331]
[1750059131662,18.64964886,157.56,157.52,15.87032331]
[1750059131970,4.65933846,157.55,157.52,15.87032331]
[1750059132363,26.0,157.58,157.53,4.65933846]
[1750059132677,4.65933846,157.58,157.53,4.65933846]
[1750059133157,44.64964886,157.59,157.53,4.65933846]
[1750059133358,4.65933846,157.58,157.52,15.87032331]
[1750059133578,4.65933846,157.58,157.53,4.65933846]
[1750059134670,49.30898732,157.59,157.54,26.87591837]
[1750059134879,44.64964886,157.59,157.55,4.65933846]
[1750059135962,49.30898732,157.59,157.55,4.65933846]
[1750059136976,49.30898732,157.59,157.54,20.52832411]
[1750059137185,44.64964886,157.59,157.54,20.52832411]
[1750059137351,44.64964886,157.59,157.55,4.65933846]
[1750059137674,49.30898732,157.59,157.54,20.52832411]
[1750059137850,4.65933846,157.58,157.54,15.86898565]
[1750059138049,4.65933846,157.57,157.54,15.86898565]
[1750059141858,44.64964886,157.59,157.53,6.3479972]
[1750059142055,4.65933846,157.57,157.53,6.3479972]
[1750059142261,44.64964886,157.59,157.53,6.3479972]
[1750059142462,4.65933846,157.57,157.53,6.3479972]
[1750059143182,44.64964886,157.59,157.53,6.3479972]
[1750059143384,4.65933846,157.57,157.53,6.3479972]
[1750059144257,4.65933846,157.56,157.53,6.3479972]
[1750059144670,4.65933846,157.57,157.53,6.3479972]
[1750059145879,4.65933846,157.56,157.53,6.3479972]
[1750059146460,4.65933846,157.56,157.53,22.21799021]
[1750059146677,4.65933846,157.57,157.53,22.21799021]
[1750059148296,44.64964886,157.59,157.53,22.21799021]
[1750059148586,4.65933846,157.57,157.53,22.21799021]
[1750059149363,4.65933846,157.57,157.53,26.87732867]
[1750059149689,4.65933846,157.57,157.53,22.21799021]
[1750059150066,44.64964886,157.59,157.53,22.21799021]
[1750059150381,4.65933846,157.57,157.53,22.21799021]
[1750059153488,44.64964886,157.59,157.53,26.87732867]
[1750059153709,4.65933846,157.57,157.53,22.21799021]
[1750059153874,4.65933846,157.56,157.53,22.21799021]
[1750059154483,4.65933846,157.57,157.53,22.21799021]
[1750059155776,4.65933846,157.56,157.53,22.21799021]
[1750059156191,18.64964886,157.58,157.53,15.86999301]
[1750059156492,4.65933846,157.57,157.53,20.52933147]
[1750059156792,18.64964886,157.58,157.53,15.86999301]
[1750059156995,4.65933846,157.57,157.53,15.86999301]
[1750059157495,4.65933846,157.57,157.53,22.21799021]
[1750059158000,4.65933846,157.56,157.53,22.21799021]
[1750059158670,4.65933846,157.55,157.53,6.3479972]
[1750059159579,4.65933846,157.55,157.51,6.34880325]
[1750059160802,18.64964886,157.58,157.51,6.34880325]
[1750059160983,4.65933846,157.55,157.51,6.34880325]
[1750059161591,23.40665451,157.58,157.51,6.34880325]
[1750059161804,4.65933846,157.55,157.51,6.34880325]
[1750059163002,4.65933846,157.52,157.44,1.5985]
[1750059163204,4.65933846,157.51,157.46,4.65933846]
[1750059163379,4.65933846,157.5,157.46,0.28432314]
[1750059163879,18.64964886,157.54,157.45,6.35122261]
[1750059163880,4.65933846,157.49,157.45,6.35122261]
[1750059164182,4.65933846,157.47,157.42,20.53975094]
[1750059164377,4.65933846,157.47,157.43,0.28432314]
[1750059164587,4.65933846,157.47,157.42,20.53975094]
[1750059164784,4.65933846,157.48,157.43,4.65933846]
[1750059164978,4.65933846,157.48,157.43,0.28432314]
[1750059165182,4.65933846,157.48,157.43,4.9436616]
[1750059165400,4.65933846,157.47,157.43,4.80150003]
[1750059165832,4.65933846,157.47,157.43,0.28432314]
[1750059165982,4.65933846,157.47,157.43,4.9436616]
[1750059166313,18.64964886,157.5,157.44,22.23069105]
[1750059166314,4.65933846,157.48,157.44,22.23069105]
[1750059167086,4.65933846,157.47,157.44,22.23069105]
[1750059167303,18.64964886,157.5,157.44,22.23069105]
[1750059167482,4.65933846,157.47,157.44,22.23069105]
[1750059167805,4.65933846,157.48,157.44,22.23069105]
[1750059169603,4.65933846,157.47,157.44,22.23069105]
[1750059169805,18.64964886,157.5,157.44,22.23069105]
[1750059170121,4.65933846,157.48,157.44,22.23069105]
[1750059171000,4.65933846,157.49,157.44,26.89002951]
[1750059171206,30.65933846,157.51,157.46,4.65933846]
[1750059171616,30.65933846,157.51,157.47,6.35041595]
[1750059174017,30.65933846,157.51,157.47,22.22645583]
[1750059174321,4.65933846,157.52,157.47,26.88579429]
[1750059174813,150.31228735,157.57,157.51,4.65933846]
[1750059175021,18.64964886,157.56,157.52,4.65933846]
[1750059175214,18.64964886,157.56,157.48,0.28432314]
[1750059175405,18.64964886,157.56,157.52,4.65933846]
[1750059176008,18.64964886,157.56,157.53,6.3479972]
[1750059176408,18.64964886,157.57,157.53,26.87732867]
[1750059176621,44.64964886,157.57,157.54,4.65933846]
[1750059177011,44.64964886,157.57,157.53,26.87732867]
[1750059178933,49.30898732,157.57,157.53,22.21799021]
[1750059179507,49.30898732,157.57,157.53,26.87732867]
[1750059180730,26.0,157.57,157.53,26.87732867]
[1750059180921,30.65933846,157.57,157.53,26.87732867]
[1750059181427,26.0,157.57,157.53,26.87732867]
[1750059181632,30.65933846,157.57,157.53,26.87732867]
[1750059182326,147.0,157.62,157.56,4.65933846]
[1750059182626,4.65933846,157.61,157.56,4.65933846]
[1750059183139,18.64964886,157.61,157.56,4.65933846]
[1750059183505,18.64964886,157.61,157.57,6.34638573]
[1750059183506,23.30898732,157.61,157.57,6.34638573]
[1750059184930,30.65933846,157.58,157.57,6.34638573]
[1750059185114,30.65933846,157.58,157.54,6.34759426]
[1750059185513,26.0,157.58,157.54,4.65933846]
[1750059185715,18.64964886,157.61,157.56,4.65933846]
[1750059186015,18.64964886,157.61,157.51,53.96438133]
[1750059186016,4.65933846,157.63,157.58,4.65933846]
[1750059186333,20.22994886,157.64,157.55,0.28432314]
[1750059186334,20.22994886,157.64,157.59,4.65933846]
[1750059186526,24.88928732,157.64,157.59,4.65933846]
[1750059187227,4.65933846,157.63,157.58,4.65933846]
[1750059187938,4.65933846,157.63,157.59,6.3455803]
[1750059190844,4.65933846,157.62,157.56,22.21375983]
[1750059191052,4.65933846,157.6,157.56,22.21375983]
[1750059191718,26.0,157.61,157.56,22.21375983]
[1750059191919,4.65933846,157.6,157.56,22.21375983]
[1750059192132,4.65933846,157.6,157.55,4.65933846]
[1750059192334,26.0,157.61,157.55,4.65933846]
[1750059192554,4.65933846,157.6,157.55,4.65933846]
[1750059192759,4.65933846,157.6,157.56,4.65933846]
[1750059193362,4.65933846,157.6,157.57,6.34638573]
[1750059193561,4.65933846,157.59,157.57,6.34638573]
[1750059194057,4.65933846,157.6,157.57,6.34638573]
[1750059194651,4.65933846,157.6,157.56,6.34678852]
[1750059194833,4.65933846,157.6,157.56,26.87309829]
[1750059196266,26.0,157.61,157.56,26.87309829]
[1750059196475,26.0,157.61,157.57,4.65933846]
[1750059196635,30.65933846,157.61,157.56,26.87309829]
[1750059196964,4.65933846,157.6,157.56,26.87309829]
[1750059197433,4.65933846,157.6,157.56,22.21375983]
[1750059199186,30.65933846,157.61,157.56,26.87309829]
[1750059200643,4.65933846,157.6,157.56,22.21375983]
[1750059201839,4.65933846,157.6,157.56,6.34678852]
[1750059202245,26.0,157.61,157.56,6.34678852]
[1750059202433,4.65933846,157.6,157.56,6.34678852]
[1750059203049,26.0,157.61,157.56,6.34678852]
[1750059203260,26.0,157.61,157.56,11.00612698]
[1750059203457,26.0,157.61,157.57,4.65933846]
[1750059203645,7.5795,157.69,157.6,4.65933846]
[1750059203856,7.5795,157.69,157.62,4.65933846]
[1750059204073,26.0,157.66,157.62,4.65933846]
[1750059204243,26.0,157.66,157.63,6.34397005]
[1750059204442,26.0,157.66,157.63,11.00330851]
[1750059204760,6.19983846,157.69,157.64,4.65933846]
[1750059205974,1.5405,157.69,157.64,4.65933846]
[1750059206175,6.19983846,157.69,157.64,4.65933846]
[1750059206356,1.5405,157.69,157.64,4.65933846]
[1750059206556,4.65933846,157.68,157.65,6.34316523]
[1750059206954,4.65933846,157.67,157.65,6.34316523]
[1750059207481,4.65933846,157.66,157.65,6.34316523]
[1750059207847,4.65933846,157.66,157.62,6.34437254]
[1750059208876,4.65933846,157.65,157.6,15.86237142]
[1750059209073,4.65933846,157.65,157.6,20.52170988]
[1750059209381,4.65933846,157.65,157.61,4.65933846]
[1750059209678,26.0,157.67,157.61,4.65933846]
[1750059209843,4.65933846,157.66,157.61,4.65933846]
[1750059210359,26.0,157.67,157.61,4.65933846]
[1750059210575,30.65933846,157.67,157.62,4.65933846]
[1750059211173,4.65933846,157.66,157.63,6.34397005]
[1750059212254,30.65933846,157.67,157.63,6.34397005]
[1750059212644,30.65933846,157.67,157.63,11.00330851]
[1750059212969,26.0,157.67,157.63,11.00330851]
[1750059213569,26.0,157.67,157.63,26.86323365]
[1750059213770,4.65933846,157.68,157.63,26.86323365]
[1750059216374,4.65933846,157.68,157.61,0.28432314]
[1750059216562,4.65933846,157.68,157.63,4.65933846]
[1750059218170,4.65933846,157.67,157.63,4.65933846]
[1750059218549,4.65933846,157.67,157.64,6.34356762]
[1750059219671,4.65933846,157.65,157.6,0.28432314]
[1750059219876,4.65933846,157.64,157.59,4.65933846]
[1750059220453,4.65933846,157.64,157.57,1.6111]
[1750059220454,4.65933846,157.64,157.6,4.65933846]
[1750059220669,4.65933846,157.65,157.6,20.52228262]
[1750059221673,4.65933846,157.65,157.6,26.86746028]
[1750059222065,4.65933846,157.65,157.6,15.86294416]
[1750059222260,4.65933846,157.65,157.6,20.52228262]
[1750059223176,4.65933846,157.64,157.6,15.86294416]
[1750059223353,4.65933846,157.64,157.6,20.52228262]
[1750059223777,4.65933846,157.65,157.6,20.52228262]
[1750059224280,4.65933846,157.65,157.6,26.86746028]
[1750059224980,4.65933846,157.66,157.6,22.20812182]
[1750059225159,4.65933846,157.65,157.6,26.86746028]
[1750059226851,26.0,157.59,157.52,7.8019]
[1750059227172,4.65933846,157.58,157.53,11.00733566]
[1750059227778,1.5605,157.63,157.53,48.21799021]
[1750059227964,26.0,157.63,157.59,4.65933846]
[1750059228157,30.65933846,157.63,157.58,4.65933846]
[1750059228769,30.65933846,157.63,157.59,6.3455803]
[1750059229169,26.0,157.63,157.59,22.20953105]
[1750059229374,26.0,157.63,157.59,26.86886951]
[1750059230089,23.30898732,157.62,157.59,6.3455803]
[1750059230281,4.65933846,157.62,157.59,6.3455803]
[1750059231680,18.64964886,157.63,157.59,6.3455803]
[1750059231889,4.65933846,157.62,157.59,6.3455803]
[1750059232683,4.65933846,157.61,157.59,6.3455803]
[1750059232986,44.64964886,157.63,157.57,6.34638573]
[1750059233173,4.65933846,157.61,157.57,6.34638573]
[1750059235663,44.64964886,157.63,157.57,6.34638573]
[1750059235986,4.65933846,157.61,157.57,6.34638573]
[1750059236988,4.65933846,157.61,157.56,20.52550832]
[1750059236989,4.65933846,157.61,157.56,26.87229684]
[1750059239401,4.65933846,157.59,157.56,6.34678852]
[1750059239897,18.64964886,157.66,157.57,0.14216157]
[1750059240066,4.65933846,157.62,157.57,0.28432314]
[1750059240268,4.65933846,157.6,157.56,22.21375983]
[1750059240466,4.65933846,157.59,157.56,22.21375983]
[1750059240680,26.0,157.63,157.56,22.21375983]
[1750059240902,26.0,157.63,157.58,4.65933846]
[1750059241086,30.65933846,157.63,157.59,22.20953105]
[1750059241269,18.64964886,157.66,157.59,22.20953105]
[1750059241468,4.65933846,157.63,157.59,22.20953105]
[1750059242294,26.0,157.63,157.59,6.3455803]
[1750059242496,4.65933846,157.6,157.59,6.3455803]
[1750059242696,18.64964886,157.62,157.59,6.3455803]
[1750059243077,18.64964886,157.62,157.56,15.86656849]
[1750059243279,4.65933846,157.58,157.56,15.86656849]
[1750059243489,26.0,157.59,157.55,6.34719136]
[1750059243695,4.65933846,157.56,157.55,6.34719136]
[1750059243891,26.0,157.59,157.55,6.34719136]
[1750059244095,4.65933846,157.56,157.55,6.34719136]
[1750059244798,26.0,157.59,157.55,6.34719136]
[1750059245105,4.65933846,157.57,157.53,22.21728368]
[1750059246193,4.65933846,157.58,157.53,26.87662214]
[1750059246577,26.0,157.59,157.53,26.87662214]
[1750059246879,4.65933846,157.57,157.53,22.21728368]
[1750059247594,4.65933846,157.54,157.53,6.3479972]
[1750059247899,4.65933846,157.56,157.53,6.3479972]
[1750059248111,4.65933846,157.55,157.53,6.3479972]
[1750059248273,44.64964886,157.58,157.53,6.3479972]
[1750059248476,4.65933846,157.56,157.53,6.3479972]
[1750059249198,4.65933846,157.55,157.53,6.3479972]
[1750059249590,44.64964886,157.58,157.52,6.3484002]
[1750059249785,4.65933846,157.55,157.52,6.3484002]
[1750059250498,4.65933846,157.55,157.52,22.2194007]
[1750059251876,44.64964886,157.58,157.52,22.2194007]
[1750059252406,4.65933846,157.55,157.52,22.2194007]
[1750059254674,4.65933846,157.54,157.52,22.2194007]
[1750059255199,4.65933846,157.53,157.52,6.3484002]
[1750059255398,4.65933846,157.54,157.52,6.3484002]
[1750059256501,18.64964886,157.6,157.52,26.87873916]
[1750059256800,4.65933846,157.56,157.52,22.2194007]
[1750059258808,44.64964886,157.6,157.52,26.87873916]
[1750059258809,4.65933846,157.57,157.52,26.87873916]
[1750059259916,4.65933846,157.56,157.52,22.2194007]
[1750059260109,4.65933846,157.56,157.52,26.87873916]
[1750059260287,4.65933846,157.57,157.52,26.87873916]
[1750059263288,44.64964886,157.6,157.52,26.87873916]
[1750059263490,4.65933846,157.57,157.52,26.87873916]
[1750059263686,4.65933846,157.57,157.52,22.2194007]
[1750059264017,4.65933846,157.57,157.52,26.87873916]
[1750059264514,4.65933846,157.57,157.52,22.2194007]
[1750059264809,4.65933846,157.56,157.52,22.2194007]
[1750059265212,4.65933846,157.57,157.52,26.87873916]
[1750059266210,44.64964886,157.6,157.54,4.65933846]
[1750059266411,44.64964886,157.6,157.52,53.96140171]
[1750059266412,49.30898732,157.6,157.52,53.96140171]
[1750059266613,4.65933846,157.59,157.54,4.65933846]
[1750059266798,44.64964886,157.6,157.53,4.65933846]
[1750059267115,4.65933846,157.58,157.53,4.65933846]
[1750059267297,4.65933846,157.59,157.54,4.65933846]
[1750059268420,4.65933846,157.59,157.55,22.21516977]
[1750059274213,4.65933846,157.58,157.55,22.21516977]
[1750059274814,4.65933846,157.57,157.55,6.34719136]
[1750059276814,4.65933846,157.57,157.53,22.21799021]
[1750059277019,4.65933846,157.58,157.53,26.87732867]
[1750059277323,4.65933846,157.59,157.54,4.65933846]
[1750059277816,4.65933846,157.6,157.55,4.65933846]
[1750059278204,4.65933846,157.61,157.56,4.65933846]
[1750059278811,4.65933846,157.6,157.56,22.21375983]
[1750059281931,44.64964886,157.63,157.56,22.21375983]
[1750059282136,4.65933846,157.61,157.56,26.87309829]
[1750059282834,4.65933846,157.61,157.56,22.21375983]
[1750059283009,4.65933846,157.61,157.56,26.87309829]
[1750059283432,4.65933846,157.59,157.56,22.21375983]
[1750059284220,4.65933846,157.6,157.56,22.21375983]
[1750059285324,4.65933846,157.59,157.56,15.86697131]
[1750059288034,30.65933846,157.6,157.56,15.86697131]
[1750059288732,4.65933846,157.59,157.56,15.86697131]
[1750059289939,4.65933846,157.59,157.56,22.21375983]
[1750059290726,26.0,157.6,157.56,6.34678852]
[1750059290727,4.65933846,157.57,157.56,6.34678852]
[1750059291240,4.65933846,157.58,157.56,6.34678852]
[1750059291939,4.65933846,157.58,157.54,22.21657991]
[1750059293140,26.0,157.6,157.54,26.87591837]
[1750059293347,4.65933846,157.6,157.54,22.21657991]
[1750059293522,4.65933846,157.6,157.55,4.65933846]
[1750059294329,3.30749339,157.64,157.58,4.65933846]
[1750059294534,18.64964886,157.64,157.59,4.65933846]
[1750059294749,23.30898732,157.64,157.59,4.65933846]
[1750059294936,4.65933846,157.63,157.58,4.65933846]
[1750059295746,4.65933846,157.63,157.59,22.20953105]
[1750059296235,4.65933846,157.62,157.59,22.20953105]
[1750059296437,18.64964886,157.64,157.59,22.20953105]
[1750059296652,4.65933846,157.62,157.59,22.20953105]
[1750059298926,4.65933846,157.63,157.59,22.20953105]
[1750059299339,4.65933846,157.63,157.59,15.86395075]
[1750059300847,4.65933846,157.6,157.57,6.34638573]
[1750059301015,26.0,157.61,157.57,6.34638573]
[1750059301016,4.65933846,157.58,157.57,6.34638573]
[1750059301223,4.65933846,157.58,157.53,22.21718103]
[1750059301455,4.65933846,157.57,157.53,22.21718103]
[1750059302152,44.64964886,157.61,157.53,22.21718103]
[1750059302153,4.65933846,157.56,157.53,22.21718103]
[1750059305448,4.65933846,157.56,157.53,6.3479972]
[1750059305449,4.65933846,157.54,157.53,6.3479972]
[1750059305652,4.65933846,157.54,157.51,66.70609822]
[1750059305653,4.65933846,157.54,157.52,6.34826205]
[1750059305849,4.65933846,157.54,157.51,66.70609822]
[1750059305850,26.0,157.52,157.51,66.70609822]
[1750059306152,30.65933846,157.52,157.51,66.70609822]
[1750059306740,49.30898732,157.52,157.51,66.70609822]
[1750059307335,30.65933846,157.52,157.51,66.70609822]
[1750059308135,44.64964886,157.52,157.51,66.70609822]
[1750059308354,49.30898732,157.52,157.51,66.70609822]
[1750059309451,49.30898732,157.52,157.46,6.35067038]
[1750059309452,18.64964886,157.51,157.46,6.35067038]
[1750059309657,4.65933846,157.47,157.42,15.88053045]
[1750059309864,26.0,157.48,157.42,15.88053045]
[1750059309865,4.65933846,157.45,157.42,15.88053045]
[1750059310667,26.0,157.48,157.42,15.88053045]
[1750059310668,4.65933846,157.46,157.42,15.88053045]
[1750059311551,4.65933846,157.46,157.42,22.23296343]
[1750059311741,4.65933846,157.46,157.42,15.88053045]
[1750059312131,4.65933846,157.45,157.42,15.88053045]
[1750059313861,4.65933846,157.44,157.41,6.35283654]
[1750059315072,4.65933846,157.42,157.37,6.35445129]
[1750059315229,4.65933846,157.41,157.37,22.24057952]
[1750059315434,18.64964886,157.44,157.38,4.65933846]
[1750059315751,4.65933846,157.43,157.39,6.35364381]
[1750059315930,4.65933846,157.43,157.39,22.23775334]
[1750059316935,4.65933846,157.42,157.39,22.23775334]
[1750059317661,4.65933846,157.42,157.36,15.88633342]
[1750059317662,4.65933846,157.4,157.36,15.88633342]
[1750059318459,26.0,157.42,157.36,20.54567188]
[1750059318654,4.65933846,157.41,157.37,4.65933846]
[1750059318865,4.65933846,157.41,157.36,20.54567188]
[1750059319066,4.65933846,157.41,157.36,15.88633342]
[1750059319251,4.65933846,157.41,157.36,20.54567188]
[1750059319760,26.0,157.42,157.36,22.24118852]
[1750059319964,4.65933846,157.41,157.36,26.90052698]
[1750059322164,4.65933846,157.41,157.36,22.24118852]
[1750059322463,4.65933846,157.4,157.36,22.24118852]
[1750059322644,4.65933846,157.41,157.36,26.90052698]